[Event "Late-Titled-Tuesday-Blitz-February-20-2024"]
[Site "Chess.com"]
[Date "2024.02.20"]
[Round "9"]
[White "GoltsevDmitry2000"]
[Black "RantomOpening"]
[Result "1-0"]
[WhiteElo "2770"]
[BlackElo "2579"]
[TimeControl "180+1"]
[EndTime "15:43:51 PST"]
[Termination "GoltsevDmitry2000 won on time"]

1. e4 {[%clk 0:02:54.3]} 1... c5 {[%clk 0:03:00.2]} 2. Nf3 {[%clk 0:02:54.5]}
2... e6 {[%clk 0:03:00.7]} 3. b3 {[%clk 0:02:51]} 3... a6 {[%clk 0:03:00.7]} 4.
Bb2 {[%clk 0:02:51.6]} 4... Nc6 {[%clk 0:03:00.9]} 5. d4 {[%clk 0:02:51.7]} 5...
cxd4 {[%clk 0:03:01.4]} 6. Nxd4 {[%clk 0:02:52.6]} 6... Qf6 {[%clk 0:03:00.3]}
7. Be2 {[%clk 0:02:49]} 7... Bc5 {[%clk 0:02:53.9]} 8. c3 {[%clk 0:02:48.8]}
8... Nge7 {[%clk 0:02:47.6]} 9. O-O {[%clk 0:02:48.1]} 9... O-O {[%clk
0:02:45.5]} 10. Na3 {[%clk 0:02:46.9]} 10... d5 {[%clk 0:02:42.3]} 11. exd5
{[%clk 0:02:46.3]} 11... Nxd5 {[%clk 0:02:42.3]} 12. Nc4 {[%clk 0:02:45.8]}
12... Nxc3 {[%clk 0:02:07.5]} 13. Bxc3 {[%clk 0:02:38.4]} 13... Nxd4 {[%clk
0:02:03.7]} 14. Bd3 {[%clk 0:02:35]} 14... Rd8 {[%clk 0:02:01.4]} 15. Rc1 {[%clk
0:02:29.7]} 15... e5 {[%clk 0:01:55.3]} 16. Nd2 {[%clk 0:02:22.3]} 16... Bf5
{[%clk 0:01:39.9]} 17. Ne4 {[%clk 0:02:17.9]} 17... Bxe4 {[%clk 0:01:38.7]} 18.
Bxe4 {[%clk 0:02:18.8]} 18... Rab8 {[%clk 0:01:13.9]} 19. Bb2 {[%clk 0:02:03.2]}
19... Bb6 {[%clk 0:01:02.4]} 20. Qd3 {[%clk 0:02:00.7]} 20... h6 {[%clk
0:00:53.9]} 21. Qc4 {[%clk 0:01:55.6]} 21... Qf4 {[%clk 0:00:36.1]} 22. Rfe1
{[%clk 0:01:29.8]} 22... Nf5 {[%clk 0:00:13.5]} 23. Rc2 {[%clk 0:01:23.3]} 23...
Rd2 {[%clk 0:00:11.5]} 24. Rxd2 {[%clk 0:01:15.6]} 24... Qxd2 {[%clk 0:00:12.4]}
25. Qe2 {[%clk 0:01:15.3]} 25... Qxe2 {[%clk 0:00:09.5]} 26. Rxe2 {[%clk
0:01:16.2]} 26... Nd4 {[%clk 0:00:09.7]} 27. Re1 {[%clk 0:01:15.2]} 27... Rc8
{[%clk 0:00:06.8]} 28. Kf1 {[%clk 0:00:45.2]} 28... Rc7 {[%clk 0:00:06.1]} 29.
Bd3 {[%clk 0:00:42.5]} 29... f6 {[%clk 0:00:04.1]} 30. Bc4+ {[%clk 0:00:42.7]}
30... Kf8 {[%clk 0:00:04.5]} 31. Bd3 {[%clk 0:00:40.5]} 31... Bc5 {[%clk
0:00:04.3]} 32. Bg6 {[%clk 0:00:38.8]} 32... Bb6 {[%clk 0:00:03.5]} 33. f4
{[%clk 0:00:39.2]} 33... Nc6 {[%clk 0:00:03.1]} 34. Ba3+ {[%clk 0:00:36]} 34...
Kg8 {[%clk 0:00:02.3]} 35. Bf5 {[%clk 0:00:33.9]} 35... Bd4 {[%clk 0:00:01.8]}
36. Bd6 {[%clk 0:00:32.8]} 36... Rf7 {[%clk 0:00:01.3]} 37. Be6 {[%clk
0:00:33.3]} 1-0

[Event "Late-Titled-Tuesday-Blitz-February-20-2024"]
[Site "Chess.com"]
[Date "2024.02.20"]
[Round "9"]
[White "Viktor_Poddubnyi"]
[Black "campochess"]
[Result "0-1"]
[WhiteElo "2237"]
[BlackElo "2166"]
[TimeControl "180+1"]
[EndTime "15:43:53 PST"]
[Termination "campochess won on time"]

1. e4 {[%clk 0:02:59.4]} 1... c5 {[%clk 0:02:59.9]} 2. Nf3 {[%clk 0:02:59.1]}
2... Nc6 {[%clk 0:02:59.9]} 3. d4 {[%clk 0:02:59.2]} 3... cxd4 {[%clk
0:02:59.9]} 4. Nxd4 {[%clk 0:03:00.1]} 4... e5 {[%clk 0:02:59]} 5. Nb5 {[%clk
0:02:59.8]} 5... a6 {[%clk 0:02:59.2]} 6. Nd6+ {[%clk 0:02:58.2]} 6... Bxd6
{[%clk 0:02:59.1]} 7. Qxd6 {[%clk 0:02:59.1]} 7... Qe7 {[%clk 0:02:59.3]} 8. Qd1
{[%clk 0:02:53.7]} 8... Nf6 {[%clk 0:02:58.9]} 9. Nc3 {[%clk 0:02:53.2]} 9... h6
{[%clk 0:02:54.9]} 10. Bc4 {[%clk 0:02:40.6]} 10... d6 {[%clk 0:02:54.3]} 11.
Nd5 {[%clk 0:02:30.8]} 11... Nxd5 {[%clk 0:02:52.4]} 12. Bxd5 {[%clk 0:02:31.7]}
12... Be6 {[%clk 0:02:51.2]} 13. O-O {[%clk 0:02:20.8]} 13... O-O {[%clk
0:02:50]} 14. Be3 {[%clk 0:02:08.5]} 14... Rac8 {[%clk 0:02:40.9]} 15. c3 {[%clk
0:02:07.6]} 15... Kh8 {[%clk 0:02:36]} 16. Qd3 {[%clk 0:01:45.3]} 16... f5
{[%clk 0:02:32.3]} 17. f3 {[%clk 0:01:34.5]} 17... Bxd5 {[%clk 0:02:23.7]} 18.
Qxd5 {[%clk 0:01:22]} 18... Qc7 {[%clk 0:02:10.3]} 19. Rad1 {[%clk 0:01:12.4]}
19... Rcd8 {[%clk 0:02:09.7]} 20. Qb3 {[%clk 0:00:41.4]} 20... b5 {[%clk
0:02:01.7]} 21. a4 {[%clk 0:00:33.4]} 21... Na5 {[%clk 0:01:53.9]} 22. Qb4
{[%clk 0:00:28.4]} 22... Nc4 {[%clk 0:01:53.6]} 23. Bc1 {[%clk 0:00:28.6]} 23...
Rb8 {[%clk 0:01:38.5]} 24. axb5 {[%clk 0:00:19.1]} 24... Rxb5 {[%clk 0:01:36.3]}
25. Qa4 {[%clk 0:00:19.2]} 25... Qa7+ {[%clk 0:01:26.7]} 26. Kh1 {[%clk
0:00:18.3]} 26... Nb6 {[%clk 0:01:26.6]} 27. Qa3 {[%clk 0:00:16.8]} 27... Nc8
{[%clk 0:01:24.8]} 28. b4 {[%clk 0:00:15.2]} 28... a5 {[%clk 0:01:21.3]} 29.
Rfe1 {[%clk 0:00:10.2]} 29... fxe4 {[%clk 0:01:19.3]} 30. fxe4 {[%clk
0:00:08.8]} 30... axb4 {[%clk 0:01:17.6]} 31. Qxa7 {[%clk 0:00:08.5]} 31... Nxa7
{[%clk 0:01:16.9]} 32. cxb4 {[%clk 0:00:09.4]} 32... Rxb4 {[%clk 0:01:14.1]} 33.
Rxd6 {[%clk 0:00:09]} 33... Rxe4 {[%clk 0:01:13.6]} 34. Red1 {[%clk 0:00:06.5]}
34... Nb5 {[%clk 0:01:12.6]} 35. Rd8 {[%clk 0:00:03.5]} 35... Rxd8 {[%clk
0:01:10.3]} 36. Rxd8+ {[%clk 0:00:04.4]} 36... Kh7 {[%clk 0:01:10.6]} 37. Bd2
{[%clk 0:00:03.7]} 37... Nd4 {[%clk 0:01:05.8]} 38. h3 {[%clk 0:00:04]} 38...
Ne2 {[%clk 0:01:05.2]} 39. Re8 {[%clk 0:00:02.9]} 39... Rd4 {[%clk 0:01:02.8]}
40. Be3 {[%clk 0:00:02.2]} 40... Rd1+ {[%clk 0:01:02.4]} 41. Kh2 {[%clk
0:00:02.7]} 41... Rd5 {[%clk 0:01:01.5]} 42. g4 {[%clk 0:00:02.9]} 42... Kg6
{[%clk 0:00:59.2]} 43. Kg2 {[%clk 0:00:02.7]} 43... Kf7 {[%clk 0:00:59]} 44. Ra8
{[%clk 0:00:02]} 44... Nc3 {[%clk 0:00:58.6]} 45. Kf3 {[%clk 0:00:02]} 45... Nd1
{[%clk 0:00:57.9]} 46. Ra7+ {[%clk 0:00:01.4]} 46... Kg8 {[%clk 0:00:56.2]} 0-1

[Event "Late-Titled-Tuesday-Blitz-February-20-2024"]
[Site "Chess.com"]
[Date "2024.02.20"]
[Round "9"]
[White "Josetricks"]
[Black "zajka-molotok"]
[Result "1-0"]
[WhiteElo "2416"]
[BlackElo "2507"]
[TimeControl "180+1"]
[EndTime "15:43:54 PST"]
[Termination "Josetricks won on time"]

1. e4 {[%clk 0:02:57.4]} 1... c5 {[%clk 0:02:59.7]} 2. c3 {[%clk 0:02:57.6]}
2... d5 {[%clk 0:02:56.7]} 3. exd5 {[%clk 0:02:57.7]} 3... Qxd5 {[%clk
0:02:57.6]} 4. d4 {[%clk 0:02:57.6]} 4... Nc6 {[%clk 0:02:57.1]} 5. Nf3 {[%clk
0:02:58]} 5... Bg4 {[%clk 0:02:56.4]} 6. Be2 {[%clk 0:02:57.9]} 6... e6 {[%clk
0:02:52.3]} 7. O-O {[%clk 0:02:57.4]} 7... Nf6 {[%clk 0:02:51.3]} 8. h3 {[%clk
0:02:57.5]} 8... Bh5 {[%clk 0:02:50.4]} 9. Be3 {[%clk 0:02:57.4]} 9... cxd4
{[%clk 0:02:48.7]} 10. cxd4 {[%clk 0:02:57.5]} 10... Be7 {[%clk 0:02:42.7]} 11.
Nc3 {[%clk 0:02:55.8]} 11... Qd6 {[%clk 0:02:42.9]} 12. Qb3 {[%clk 0:02:37.4]}
12... O-O {[%clk 0:02:36.1]} 13. Rfd1 {[%clk 0:02:34.2]} 13... Qb4 {[%clk
0:02:26]} 14. d5 {[%clk 0:02:26.5]} 14... Qxb3 {[%clk 0:02:20.3]} 15. axb3
{[%clk 0:02:26.1]} 15... exd5 {[%clk 0:02:20]} 16. Nxd5 {[%clk 0:02:26.3]} 16...
Nxd5 {[%clk 0:02:16.7]} 17. Rxd5 {[%clk 0:02:27.2]} 17... Bg6 {[%clk 0:02:07.3]}
18. Rd7 {[%clk 0:02:20]} 18... Bf6 {[%clk 0:01:55.9]} 19. Rxb7 {[%clk
0:02:05.9]} 19... Bxb2 {[%clk 0:01:54.5]} 20. Ra6 {[%clk 0:02:05.3]} 20... Be4
{[%clk 0:01:47.4]} 21. Nd2 {[%clk 0:01:55.6]} 21... Bd5 {[%clk 0:01:43.6]} 22.
Bc4 {[%clk 0:01:46.7]} 22... Bxc4 {[%clk 0:00:47]} 23. Nxc4 {[%clk 0:01:47.6]}
23... Nd8 {[%clk 0:00:46.6]} 24. Rbxa7 {[%clk 0:01:31.8]} 24... Rxa7 {[%clk
0:00:46.5]} 25. Rxa7 {[%clk 0:01:31.5]} 25... Bf6 {[%clk 0:00:46.7]} 26. b4
{[%clk 0:01:19.2]} 26... Ne6 {[%clk 0:00:39.5]} 27. b5 {[%clk 0:01:13.6]} 27...
Rc8 {[%clk 0:00:36.3]} 28. Nd6 {[%clk 0:01:10.5]} 28... Rd8 {[%clk 0:00:27.2]}
29. Nc4 {[%clk 0:00:31.7]} 29... h5 {[%clk 0:00:20.5]} 30. b6 {[%clk 0:00:31.3]}
30... Rd1+ {[%clk 0:00:20.4]} 31. Kh2 {[%clk 0:00:31.1]} 31... Rb1 {[%clk
0:00:20.3]} 32. b7 {[%clk 0:00:28.9]} 32... Kh7 {[%clk 0:00:20.2]} 33. Bb6
{[%clk 0:00:23.6]} 33... Be5+ {[%clk 0:00:02.4]} 34. Nxe5 {[%clk 0:00:23.2]}
34... Rxb6 {[%clk 0:00:03.3]} 35. Nd7 {[%clk 0:00:22.9]} 1-0

[Event "Late-Titled-Tuesday-Blitz-February-20-2024"]
[Site "Chess.com"]
[Date "2024.02.20"]
[Round "9"]
[White "DonJuanEGenaro"]
[Black "yaguigor"]
[Result "1-0"]
[WhiteElo "2174"]
[BlackElo "2625"]
[TimeControl "180+1"]
[EndTime "15:43:56 PST"]
[Termination "DonJuanEGenaro won by resignation"]

1. d4 {[%clk 0:02:58.5]} 1... d5 {[%clk 0:02:58.7]} 2. Nf3 {[%clk 0:02:57.1]}
2... Nf6 {[%clk 0:02:58]} 3. c4 {[%clk 0:02:57.1]} 3... c6 {[%clk 0:02:57.4]} 4.
cxd5 {[%clk 0:02:57.3]} 4... cxd5 {[%clk 0:02:57.4]} 5. Nc3 {[%clk 0:02:57.5]}
5... Nc6 {[%clk 0:02:57.7]} 6. Bf4 {[%clk 0:02:57.3]} 6... Bf5 {[%clk
0:02:57.7]} 7. e3 {[%clk 0:02:57.4]} 7... e6 {[%clk 0:02:57.2]} 8. Be2 {[%clk
0:02:57.5]} 8... Bd6 {[%clk 0:02:54.3]} 9. Bxd6 {[%clk 0:02:57.2]} 9... Qxd6
{[%clk 0:02:53.7]} 10. a3 {[%clk 0:02:57.3]} 10... O-O {[%clk 0:02:52.3]} 11.
O-O {[%clk 0:02:56.6]} 11... Rfc8 {[%clk 0:02:51.4]} 12. Qb3 {[%clk 0:02:40.9]}
12... Na5 {[%clk 0:02:49.4]} 13. Qa2 {[%clk 0:02:39.5]} 13... Nc4 {[%clk
0:02:43.1]} 14. Rfc1 {[%clk 0:02:37]} 14... a6 {[%clk 0:02:27.6]} 15. b3 {[%clk
0:02:26.8]} 15... Na5 {[%clk 0:02:25.3]} 16. Na4 {[%clk 0:02:24.7]} 16... b5
{[%clk 0:02:04.9]} 17. Nc5 {[%clk 0:02:20.9]} 17... Ne4 {[%clk 0:02:02.6]} 18.
b4 {[%clk 0:02:17.5]} 18... Nc4 {[%clk 0:01:59.5]} 19. a4 {[%clk 0:02:09.3]}
19... Qd8 {[%clk 0:01:40.2]} 20. Ne5 {[%clk 0:01:39.2]} 20... Ned6 {[%clk
0:01:28.1]} 21. Nxc4 {[%clk 0:01:33]} 21... bxc4 {[%clk 0:01:22.3]} 22. Qa3
{[%clk 0:01:28.8]} 22... Qb6 {[%clk 0:01:18.4]} 23. Ra2 {[%clk 0:01:18.8]} 23...
a5 {[%clk 0:01:06.5]} 24. b5 {[%clk 0:01:11.6]} 24... Ne4 {[%clk 0:00:56.9]} 25.
Nxe4 {[%clk 0:01:09.2]} 25... Bxe4 {[%clk 0:00:57.8]} 26. Rc3 {[%clk 0:00:59.3]}
26... Rc7 {[%clk 0:00:54.8]} 27. h4 {[%clk 0:00:50.2]} 27... Rd8 {[%clk
0:00:53.5]} 28. h5 {[%clk 0:00:49.8]} 28... h6 {[%clk 0:00:53]} 29. Ra1 {[%clk
0:00:40]} 29... f6 {[%clk 0:00:51]} 30. Rac1 {[%clk 0:00:39.6]} 30... e5 {[%clk
0:00:49.3]} 31. Rd1 {[%clk 0:00:38]} 31... Qe6 {[%clk 0:00:44.8]} 32. dxe5
{[%clk 0:00:35]} 32... fxe5 {[%clk 0:00:39.8]} 33. Rxc4 {[%clk 0:00:33.4]} 33...
Rxc4 {[%clk 0:00:19.6]} 34. Bxc4 {[%clk 0:00:32.2]} 34... Rf8 {[%clk 0:00:19.4]}
35. Be2 {[%clk 0:00:26.5]} 35... Rd8 {[%clk 0:00:17.3]} 36. Qc5 {[%clk
0:00:22.7]} 36... Qd6 {[%clk 0:00:12.1]} 37. Qxd6 {[%clk 0:00:21.4]} 37... Rd7
{[%clk 0:00:12.4]} 38. Qxd7 {[%clk 0:00:20.2]} 1-0

[Event "Late-Titled-Tuesday-Blitz-February-20-2024"]
[Site "Chess.com"]
[Date "2024.02.20"]
[Round "9"]
[White "besarquis"]
[Black "yuriydovzik"]
[Result "1-0"]
[WhiteElo "2223"]
[BlackElo "2156"]
[TimeControl "180+1"]
[EndTime "15:43:56 PST"]
[Termination "besarquis won on time"]

1. e4 {[%clk 0:03:00.9]} 1... c6 {[%clk 0:02:59.2]} 2. d4 {[%clk 0:03:00.3]}
2... Na6 {[%clk 0:02:59.2]} 3. Nf3 {[%clk 0:02:55.2]} 3... d6 {[%clk 0:02:53.5]}
4. Bc4 {[%clk 0:02:49.3]} 4... e6 {[%clk 0:02:47]} 5. a4 {[%clk 0:02:44.4]} 5...
d5 {[%clk 0:02:41.3]} 6. exd5 {[%clk 0:02:32.1]} 6... exd5 {[%clk 0:02:33.9]} 7.
Bxa6 {[%clk 0:02:24.9]} 7... Qa5+ {[%clk 0:02:31.8]} 8. Bd2 {[%clk 0:02:04.5]}
8... Qxa6 {[%clk 0:02:31.5]} 9. Qe2+ {[%clk 0:02:04.5]} 9... Qxe2+ {[%clk
0:02:30.3]} 10. Kxe2 {[%clk 0:02:04.8]} 10... Nf6 {[%clk 0:02:25.4]} 11. Re1
{[%clk 0:02:01.5]} 11... Ne4 {[%clk 0:02:03.9]} 12. Ng5 {[%clk 0:01:55.5]} 12...
Nxg5 {[%clk 0:01:40.2]} 13. Bxg5 {[%clk 0:01:55]} 13... Bf5 {[%clk 0:01:27]} 14.
Nc3 {[%clk 0:01:44.7]} 14... Kd7 {[%clk 0:01:20.9]} 15. Kd2 {[%clk 0:01:39.7]}
15... Bb4 {[%clk 0:01:17.4]} 16. a5 {[%clk 0:01:34.2]} 16... f6 {[%clk
0:01:12.9]} 17. Bf4 {[%clk 0:01:27.4]} 17... b6 {[%clk 0:01:11.2]} 18. axb6
{[%clk 0:01:15.5]} 18... axb6 {[%clk 0:01:10.5]} 19. f3 {[%clk 0:01:15.2]} 19...
c5 {[%clk 0:01:02.3]} 20. Be3 {[%clk 0:01:06.8]} 20... c4 {[%clk 0:00:58.8]} 21.
Bf4 {[%clk 0:00:55.2]} 21... g5 {[%clk 0:00:56.1]} 22. Bg3 {[%clk 0:00:50]}
22... h5 {[%clk 0:00:55.2]} 23. Bf2 {[%clk 0:00:41.9]} 23... h4 {[%clk
0:00:43.1]} 24. Be3 {[%clk 0:00:19.6]} 24... Rhe8 {[%clk 0:00:39.6]} 25. Bf2
{[%clk 0:00:19]} 25... Rxe1 {[%clk 0:00:21.5]} 26. Rxa8 {[%clk 0:00:16.5]} 26...
Rb1 {[%clk 0:00:11.8]} 27. Ra2 {[%clk 0:00:15.3]} 27... Bg6 {[%clk 0:00:08.5]}
28. Be3 {[%clk 0:00:14.8]} 28... Kc6 {[%clk 0:00:07.3]} 29. g3 {[%clk
0:00:12.1]} 29... hxg3 {[%clk 0:00:05.5]} 30. hxg3 {[%clk 0:00:12.2]} 1-0

[Event "Late-Titled-Tuesday-Blitz-February-20-2024"]
[Site "Chess.com"]
[Date "2024.02.20"]
[Round "9"]
[White "aistrel"]
[Black "JoakimVonAnd"]
[Result "0-1"]
[WhiteElo "2551"]
[BlackElo "2699"]
[TimeControl "180+1"]
[EndTime "15:43:59 PST"]
[Termination "JoakimVonAnd won on time"]

1. d4 {[%clk 0:03:00.9]} 1... Nf6 {[%clk 0:02:58.2]} 2. Nc3 {[%clk 0:03:00.4]}
2... d5 {[%clk 0:02:58]} 3. Bf4 {[%clk 0:03:00.5]} 3... e6 {[%clk 0:02:58.1]} 4.
Nb5 {[%clk 0:03:00.2]} 4... Na6 {[%clk 0:02:58.7]} 5. e3 {[%clk 0:03:00.1]} 5...
Be7 {[%clk 0:02:59.1]} 6. Nf3 {[%clk 0:03:00.3]} 6... O-O {[%clk 0:02:59.4]} 7.
Be2 {[%clk 0:03:01]} 7... Bd7 {[%clk 0:02:55.4]} 8. O-O {[%clk 0:02:57.6]} 8...
Nh5 {[%clk 0:02:55.5]} 9. Be5 {[%clk 0:02:45.4]} 9... f6 {[%clk 0:02:52.5]} 10.
Bg3 {[%clk 0:02:34.5]} 10... Nxg3 {[%clk 0:02:51.9]} 11. hxg3 {[%clk 0:02:34.4]}
11... c5 {[%clk 0:02:52.3]} 12. c3 {[%clk 0:02:28.5]} 12... Nb8 {[%clk
0:02:49.8]} 13. a4 {[%clk 0:02:09.9]} 13... Nc6 {[%clk 0:02:44.5]} 14. Bd3
{[%clk 0:01:55.8]} 14... a6 {[%clk 0:02:34.9]} 15. Na3 {[%clk 0:01:55.5]} 15...
Be8 {[%clk 0:02:33.9]} 16. Rc1 {[%clk 0:01:48.1]} 16... Bf7 {[%clk 0:02:10.3]}
17. Bb1 {[%clk 0:01:44.7]} 17... cxd4 {[%clk 0:02:08.4]} 18. cxd4 {[%clk
0:01:43.7]} 18... e5 {[%clk 0:02:08.6]} 19. dxe5 {[%clk 0:01:26.6]} 19... fxe5
{[%clk 0:02:09.5]} 20. e4 {[%clk 0:01:27.5]} 20... Bxa3 {[%clk 0:01:56.3]} 21.
bxa3 {[%clk 0:01:25.4]} 21... d4 {[%clk 0:01:56]} 22. Rxc6 {[%clk 0:01:17.1]}
22... bxc6 {[%clk 0:01:54.6]} 23. Nxe5 {[%clk 0:01:18]} 23... Be8 {[%clk
0:01:15.1]} 24. Ba2+ {[%clk 0:00:41.3]} 24... Kh8 {[%clk 0:01:15.2]} 25. Qc2
{[%clk 0:00:40.9]} 25... Qd6 {[%clk 0:01:04]} 26. f4 {[%clk 0:00:41.2]} 26...
Rd8 {[%clk 0:00:59.6]} 27. Rf3 {[%clk 0:00:34.7]} 27... c5 {[%clk 0:00:30.9]}
28. a5 {[%clk 0:00:31.7]} 28... Rb8 {[%clk 0:00:29]} 29. Bc4 {[%clk 0:00:21.2]}
29... Qc7 {[%clk 0:00:27]} 30. g4 {[%clk 0:00:15.8]} 30... Qxa5 {[%clk
0:00:26.2]} 31. f5 {[%clk 0:00:13.5]} 31... Qe1+ {[%clk 0:00:25.7]} 32. Kh2
{[%clk 0:00:13.8]} 32... Rb1 {[%clk 0:00:17.1]} 33. Rh3 {[%clk 0:00:04.4]} 33...
Rc1 {[%clk 0:00:16.5]} 34. Qb3 {[%clk 0:00:01.7]} 34... Rc3 {[%clk 0:00:15.9]}
0-1

[Event "Late-Titled-Tuesday-Blitz-February-20-2024"]
[Site "Chess.com"]
[Date "2024.02.20"]
[Round "9"]
[White "el008"]
[Black "Onthequiet"]
[Result "0-1"]
[WhiteElo "2520"]
[BlackElo "2442"]
[TimeControl "180+1"]
[EndTime "15:43:59 PST"]
[Termination "Onthequiet won by checkmate"]

1. Nf3 {[%clk 0:03:00.9]} 1... d5 {[%clk 0:02:59.8]} 2. b3 {[%clk 0:03:01]} 2...
Nf6 {[%clk 0:02:59.3]} 3. Bb2 {[%clk 0:03:01.6]} 3... Bf5 {[%clk 0:02:59.3]} 4.
e3 {[%clk 0:03:02.1]} 4... e6 {[%clk 0:02:59.7]} 5. Be2 {[%clk 0:03:02.4]} 5...
Nbd7 {[%clk 0:03:00.1]} 6. O-O {[%clk 0:03:03.1]} 6... h6 {[%clk 0:03:00.6]} 7.
c4 {[%clk 0:03:03.9]} 7... c6 {[%clk 0:03:00.5]} 8. Nc3 {[%clk 0:03:04.6]} 8...
Be7 {[%clk 0:03:00.6]} 9. d3 {[%clk 0:03:05.3]} 9... O-O {[%clk 0:03:01]} 10.
Re1 {[%clk 0:03:06]} 10... Bh7 {[%clk 0:03:01.2]} 11. Bf1 {[%clk 0:03:06.6]}
11... a5 {[%clk 0:03:01.6]} 12. a3 {[%clk 0:03:06.8]} 12... Nc5 {[%clk 0:03:01]}
13. b4 {[%clk 0:03:05.9]} 13... Na6 {[%clk 0:02:56.8]} 14. b5 {[%clk 0:03:03.1]}
14... Nc5 {[%clk 0:02:56.6]} 15. d4 {[%clk 0:03:03.1]} 15... Nce4 {[%clk
0:02:55.3]} 16. c5 {[%clk 0:03:03.1]} 16... b6 {[%clk 0:02:50.5]} 17. cxb6
{[%clk 0:03:00.3]} 17... Qxb6 {[%clk 0:02:51.4]} 18. Na4 {[%clk 0:03:00.3]}
18... Qc7 {[%clk 0:02:49]} 19. b6 {[%clk 0:03:00.6]} 19... Qb7 {[%clk
0:02:46.4]} 20. Ne5 {[%clk 0:03:00.1]} 20... c5 {[%clk 0:02:40.7]} 21. f3 {[%clk
0:02:58.7]} 21... Ng5 {[%clk 0:02:23.4]} 22. dxc5 {[%clk 0:02:58.9]} 22... Rfc8
{[%clk 0:01:32.9]} 23. Bb5 {[%clk 0:02:58.5]} 23... Bxc5 {[%clk 0:01:30.5]} 24.
Bd4 {[%clk 0:02:56.5]} 24... Bxd4 {[%clk 0:01:27]} 25. Qxd4 {[%clk 0:02:57.4]}
25... Ne8 {[%clk 0:01:04.5]} 26. h4 {[%clk 0:02:57.5]} 26... Nd6 {[%clk
0:01:04]} 27. Bd7 {[%clk 0:02:53.4]} 27... f6 {[%clk 0:00:54.5]} 28. Bxc8 {[%clk
0:02:53.4]} 28... Rxc8 {[%clk 0:00:55.4]} 29. hxg5 {[%clk 0:02:53.6]} 29... fxe5
{[%clk 0:00:52.9]} 30. Qxe5 {[%clk 0:02:54.5]} 30... Qe7 {[%clk 0:00:48.7]} 31.
gxh6 {[%clk 0:02:54.8]} 31... gxh6 {[%clk 0:00:47.2]} 32. Rac1 {[%clk 0:02:55]}
32... Nc4 {[%clk 0:00:43.3]} 33. Qg3+ {[%clk 0:02:54.4]} 33... Kh8 {[%clk
0:00:43.1]} 34. Nc3 {[%clk 0:02:45.1]} 34... Rf8 {[%clk 0:00:39.4]} 35. Nb5
{[%clk 0:02:44.3]} 35... Qc5 {[%clk 0:00:35.1]} 36. Nd4 {[%clk 0:02:43.8]} 36...
Qxb6 {[%clk 0:00:34.3]} 37. Rxc4 {[%clk 0:02:42.5]} 37... dxc4 {[%clk
0:00:33.8]} 38. Qe5+ {[%clk 0:02:43.3]} 38... Kg8 {[%clk 0:00:34.2]} 39. Nxe6
{[%clk 0:02:44]} 39... Rf7 {[%clk 0:00:28.5]} 40. Rd1 {[%clk 0:02:44.5]} 40...
Bd3 {[%clk 0:00:16.1]} 41. Kf2 {[%clk 0:02:36.5]} 41... Re7 {[%clk 0:00:15.1]}
42. Qg3+ {[%clk 0:02:36.8]} 42... Kf7 {[%clk 0:00:14.6]} 43. Nd4 {[%clk
0:02:37.2]} 43... Qb2+ {[%clk 0:00:13.6]} 44. Kg1 {[%clk 0:02:37.4]} 44... Qxa3
{[%clk 0:00:11.7]} 45. Qf4+ {[%clk 0:02:37.9]} 45... Ke8 {[%clk 0:00:11.7]} 46.
Nc6 {[%clk 0:02:38.3]} 46... Qa4 {[%clk 0:00:10]} 47. Qb8+ {[%clk 0:02:37.9]}
47... Kf7 {[%clk 0:00:10]} 48. Nd8+ {[%clk 0:02:35.7]} 48... Kg7 {[%clk
0:00:09]} 49. Qb2+ {[%clk 0:02:34.8]} 49... Kh7 {[%clk 0:00:08.1]} 50. Ra1
{[%clk 0:02:35.7]} 50... Qd7 {[%clk 0:00:07]} 51. Qb8 {[%clk 0:02:29.9]} 51...
Rxe3 {[%clk 0:00:06.7]} 52. Qc8 {[%clk 0:02:24.9]} 52... Qd4 {[%clk 0:00:05.9]}
53. Qc7+ {[%clk 0:02:22.7]} 53... Kg6 {[%clk 0:00:05.9]} 54. Qg3+ {[%clk
0:02:22.7]} 54... Kh7 {[%clk 0:00:05.8]} 55. Kh2 {[%clk 0:02:13.5]} 55... Re5
{[%clk 0:00:05]} 56. Qh3 {[%clk 0:02:09.5]} 56... Qxa1 {[%clk 0:00:04.8]} 57.
Qd7+ {[%clk 0:02:09.6]} 57... Kg6 {[%clk 0:00:04.9]} 58. Qd6+ {[%clk 0:02:10]}
58... Kg7 {[%clk 0:00:04.3]} 59. Nc6 {[%clk 0:02:09.7]} 59... Rg5 {[%clk
0:00:03.3]} 60. Qe7+ {[%clk 0:02:09.5]} 60... Kg6 {[%clk 0:00:03.5]} 61. Qe6+
{[%clk 0:02:09.4]} 61... Qf6 {[%clk 0:00:03.8]} 62. Qg8+ {[%clk 0:02:09.9]}
62... Kh5 {[%clk 0:00:04]} 63. Qe8+ {[%clk 0:02:09.3]} 63... Kh4 {[%clk
0:00:04]} 64. Qb8 {[%clk 0:02:05.9]} 64... Rxg2+ {[%clk 0:00:01.8]} 65. Kxg2
{[%clk 0:02:06.1]} 65... Qb2+ {[%clk 0:00:02.5]} 66. Kg1 {[%clk 0:02:05.5]}
66... Qxb8 {[%clk 0:00:03.4]} 67. Nxb8 {[%clk 0:02:03.6]} 67... c3 {[%clk
0:00:04.3]} 68. Nc6 {[%clk 0:01:59.9]} 68... c2 {[%clk 0:00:05.2]} 69. Ne5
{[%clk 0:02:00.6]} 69... c1=Q+ {[%clk 0:00:04.9]} 70. Kg2 {[%clk 0:02:01.4]}
70... Kg5 {[%clk 0:00:05.1]} 71. Nxd3 {[%clk 0:02:01.5]} 71... Kf6 {[%clk
0:00:06]} 72. Nf2 {[%clk 0:02:02.2]} 72... Qb2 {[%clk 0:00:05.9]} 73. Kg3 {[%clk
0:02:02.6]} 73... Qxf2+ {[%clk 0:00:06.7]} 74. Kxf2 {[%clk 0:02:03.5]} 74... a4
{[%clk 0:00:07.3]} 75. Ke3 {[%clk 0:02:04.1]} 75... a3 {[%clk 0:00:08.2]} 76.
Kd3 {[%clk 0:02:05]} 76... a2 {[%clk 0:00:09]} 77. Ke4 {[%clk 0:02:05.7]} 77...
a1=Q {[%clk 0:00:09.3]} 78. Kf4 {[%clk 0:02:06.6]} 78... Qb2 {[%clk 0:00:08.5]}
79. Kg4 {[%clk 0:02:07.5]} 79... Qb3 {[%clk 0:00:09.1]} 80. Kg3 {[%clk
0:02:08.2]} 80... Qe3 {[%clk 0:00:09.4]} 81. Kg2 {[%clk 0:02:09.1]} 81... Ke5
{[%clk 0:00:09.8]} 82. Kg3 {[%clk 0:02:10]} 82... Qf4+ {[%clk 0:00:09.9]} 83.
Kg2 {[%clk 0:02:10.5]} 83... Kd4 {[%clk 0:00:10.8]} 84. Kf2 {[%clk 0:02:11.4]}
84... Kd3 {[%clk 0:00:11.1]} 85. Kg2 {[%clk 0:02:12.3]} 85... Ke2 {[%clk
0:00:10.8]} 86. Kh3 {[%clk 0:02:13.2]} 86... Qxf3+ {[%clk 0:00:10.8]} 87. Kh4
{[%clk 0:02:14.1]} 87... Qg2 {[%clk 0:00:11.4]} 88. Kh5 {[%clk 0:02:14.6]} 88...
Kf3 {[%clk 0:00:11.9]} 89. Kxh6 {[%clk 0:02:15]} 89... Kf4 {[%clk 0:00:12.4]}
90. Kh7 {[%clk 0:02:15.9]} 90... Kf5 {[%clk 0:00:12.9]} 91. Kh8 {[%clk
0:02:16.8]} 91... Kf6 {[%clk 0:00:13.4]} 92. Kh7 {[%clk 0:02:17.7]} 92... Qg7#
{[%clk 0:00:13.6]} 0-1